{"text_format":"1","workbook":"xlsx","n_sheets":10,"sheets":["Arbre généalogique","Ascendance","Parents","Grands_parents_paternels","Grands_parents_maternels","Arrière_grands_parents_pater_1","Arrière_grands_parents_pater_2","Arrière_grands_parents_mater_1","Arrière_grands_parents_mater_2","Gedcom"],"not_rendered":{"charts":0,"images":16,"macros":1,"external_links":0,"defined_names":129,"comments":0,"pivot_tables":0},"unopened":[],"bounds":{"document_bytes":16777216,"sheet_cells":100000,"rows_first":2000,"rows_last":500,"rows_between":2000,"halvings":0,"cell_chars":16384,"cell_head_chars":4096},"cells_cut":0,"cells_raw":0,"read":"whole","date_system":"1900"}

{"sheet":"Arbre généalogique","index":0,"n_rows":34,"n_cols":14,"rows_kept":34,"cut":false,"hidden":false,"merged":[[2,1,3,4],[10,4,10,5],[26,4,26,5],[4,10,4,11],[18,1,18,2],[30,7,30,8],[22,7,22,8],[14,7,14,8],[6,7,6,8],[16,10,16,11],[12,10,12,11],[8,10,8,11],[32,10,32,11],[28,10,28,11],[24,10,24,11],[20,10,20,11],[13,13,13,14],[15,13,15,14],[17,13,17,14],[19,13,19,14],[21,13,21,14],[23,13,23,14],[25,13,25,14],[27,13,27,14],[29,13,29,14],[31,13,31,14],[3,13,3,14],[33,13,33,14],[11,13,11,14],[9,13,9,14],[7,13,7,14],[5,13,5,14]]}
[]
[null,"Dupont - Jensen"]
[null,"ARBRE GÉNÉALOGIQUE"]
[null,null,null,null,null,null,null,null,null,null,null,null,null,"Arrière-arrière-grand-père paternel 1"]
[null,null,null,null,null,null,null,null,null,null,"Arrière-grand-père paternel 1"]
[null,null,null,null,null,null,null,null,null,null,null,null,null,"Arrière-arrière-grand-mère paternelle 1"]
[null,null,null,null,null,null,null,"Jean-François Dupont"]
[null,null,null,null,null,null,null,null,null,null,null,null,null,"Arrière-arrière-grand-père paternel 2"]
[null,null,null,null,null,null,null,null,null,null,"Arrière-grand-mère paternelle 1"]
[null,null,null,null,null,null,null,null,null,null,null,null,null,"Arrière-arrière-grand-mère paternelle 2"]
[null,null,null,null,"Roger Dupont"]
[null,null,null,null,null,null,null,null,null,null,null,null,null,"Arrière-arrière-grand-père paternel 3"]
[null,null,null,null,null,null,null,null,null,null,"Arrière-grand-père paternel 2"]
[null,null,null,null,null,null,null,null,null,null,null,null,null,"Arrière-arrière-grand-mère paternelle 3"]
[null,null,null,null,null,null,null,"Laure Goudiard du Mesnil"]
[null,null,null,null,null,null,null,null,null,null,null,null,null,"Arrière-arrière-grand-père paternel 4"]
[null,null,null,null,null,null,null,null,null,null,"Arrière-grand-mère paternelle 2"]
[null,null,null,null,null,null,null,null,null,null,null,null,null,"Arrière-arrière-grand-mère paternelle 4"]
[null,"Aurélie Dupont"]
[null,null,null,null,null,null,null,null,null,null,null,null,null,"Arrière-arrière-grand-père maternel 1"]
[null,null,null,null,null,null,null,null,null,null,"Arrière-grand-père maternel 1"]
[null,null,null,null,null,null,null,null,null,null,null,null,null,"Arrière-arrière-grand-mère maternelle 1"]
[null,null,null,null,null,null,null,"Thomas Søndergaard Jensen"]
[null,null,null,null," ",null,null,null,null,null,null,null,null,"Arrière-arrière-grand-père maternel 2"]
[null,null,null,null,null,null,null,null,null,null,"Arrière-grand-mère maternelle 1"]
[null,null,null,null,null,null,null,null,null,null,null,null,null,"Arrière-arrière-grand-mère maternelle 2"]
[null,null,null,null,"Christiane,Rønnow Jensen"]
[null,null,null,null,null,null,null,null,null,null," ",null,null,"Arrière-arrière-grand-père maternel 3"]
[null,null,null,null,null,null,null,null,null,null,"Arrière-grand-père maternel 2"]
[null,null,null,null,null,null,null,null,null,null,null,null,null,"Arrière-arrière-grand-mère maternelle 3"]
[null,null,null,null,null,null,null,"Charlotte Louis"]
[null,null,null,null,null,null,null,null,null,null,null,null,null,"Arrière-arrière-grand-père maternel 4"]
[null,null,null,null,null,null,null,null,null,null,"Arrière-grand-mère maternelle 2"]
[null,null,null,null,null,null,null,null,null,null,null,null,null,"Arrière-arrière-grand-mère maternelle 4"]

{"sheet":"Ascendance","index":1,"n_rows":22,"n_cols":92,"rows_kept":22,"cut":false,"hidden":false,"merged":[[16,19,16,28],[16,67,16,76],[21,43,21,52],[6,73,6,82],[6,85,6,94],[11,7,11,16],[11,31,11,40],[11,55,11,64],[11,79,11,88],[1,73,1,76],[1,79,1,82],[1,85,1,88],[1,19,1,22],[1,25,1,28],[1,31,1,34],[1,91,1,94],[6,1,6,10],[6,13,6,22],[6,25,6,34],[6,37,6,46],[6,49,6,58],[6,61,6,70],[1,37,1,40],[1,43,1,46],[1,49,1,52],[1,55,1,58],[1,61,1,64],[1,67,1,70],[1,1,1,4],[1,7,1,10],[1,13,1,16]]}
[]
[null,{"$f":"ArrièreArrièreGrandPèrePaternel1","v":"Arrière-arrière-grand-père paternel 1"},null,null,null,null," ",{"$f":"ArrièreArrièreGrandMèrePaternelle1","v":"Arrière-arrière-grand-mère paternelle 1"},null,null,null,null," ",{"$f":"ArrièreArrièreGrandPèrePaternel2","v":"Arrière-arrière-grand-père paternel 2"},null,null,null,null," ",{"$f":"ArrièreArrièreGrandMèrePaternelle2","v":"Arrière-arrière-grand-mère paternelle 2"},null,null,null,null," ",{"$f":"ArrièreArrièreGrandPèrePaternel3","v":"Arrière-arrière-grand-père paternel 3"},null,null,null,null," ",{"$f":"ArrièreArrièreGrandMèrePaternelle3","v":"Arrière-arrière-grand-mère paternelle 3"},null,null,null,null," ",{"$f":"ArrièreArrièreGrandPèrePaternel4","v":"Arrière-arrière-grand-père paternel 4"},null,null,null,null," ",{"$f":"ArrièreArrièreGrandMèrePaternelle4","v":"Arrière-arrière-grand-mère paternelle 4"},null,null,null,null," ",{"$f":"ArrièreArrièreGrandPèreMaternel1","v":"Arrière-arrière-grand-père maternel 1"},null,null,null,null," ",{"$f":"ArrièreArriereGrandMèreMaternelle1","v":"Arrière-arrière-grand-mère maternelle 1"},null,null,null,null," ",{"$f":"ArrièreArrièreGrandPèreMaternel2","v":"Arrière-arrière-grand-père maternel 2"},null,null,null,null," ",{"$f":"ArrièreArrièreGrandMèreMaternelle2","v":"Arrière-arrière-grand-mère maternelle 2"},null,null,null,null," ",{"$f":"ArrièreArrièreGrandPèreMaternel3","v":"Arrière-arrière-grand-père maternel 3"},null,null,null,null," ",{"$f":"ArrièreArrièreGrandMèreMaternelle3","v":"Arrière-arrière-grand-mère maternelle 3"},null,null,null,null," ",{"$f":"ArrièreArrièreGrandPèreMaternel4","v":"Arrière-arrière-grand-père maternel 4"},null,null,null,null," ",{"$f":"ArrièreArrièreGrandMèreMaternelle4","v":"Arrière-arrière-grand-mère maternelle 4"}]
[]
[]
[null,null,null,null,null,null,null,null,null,null,null,null,null,null,null,null,null,null,null,null,null,null,null,null,null,null,null,null,null,null,null,null,null,null,null,null,null,null,null,null,null,null,null,null,null,null,null,null," "]
[]
[null,{"$f":"ArrièreGrandPèrePaternel1&IF(MétierArrièreGrandPèrePaternel1=\"\",\"\",CHAR(10)&MétierArrièreGrandPèrePaternel1)&IF(NaissanceArrièreGrandPèrePaternel1=\"\",\"\",CHAR(10)&\"°\"&NaissanceArrièreGrandPèrePaternel1&\" - \"&LieuNaissanceArrièreGrandPèrePaternel1)&IF(DécèsArrièreGrandPèrePaternel1=\"\",\"\",CHAR(10)&\"+\"&DécèsArrièreGrandPèrePaternel1&\" - \"&LieuDécèsArrièreGrandPèrePaternel1)","v":"Arrière-grand-père paternel 1"},null,null,null,null,null,null,null,null,null,null,null,{"$f":"ArrièreGrandMèrePaternelle1&IF(MétierArrièreGrandMèrePaternelle1=\"\",\"\",CHAR(10)&MétierArrièreGrandMèrePaternelle1)&IF(NaissanceArrièreGrandMèrePaternelle1=\"\",\"\",CHAR(10)&\"°\"&NaissanceArrièreGrandMèrePaternelle1&\" - \"&LieuNaissanceArrièreGrandMèrePaternelle1)&IF(DécèsArrièreGrandMèrePaternelle1=\"\",\"\",CHAR(10)&\"+\"&DécèsArrièreGrandMèrePaternelle1&\" - \"&LieuDécèsArrièreGrandMèrePaternelle1)","v":"Arrière-grand-mère paternelle 1"},null,null,null,null,null,null,null,null,null,null,null,{"$f":"ArrièreGrandPèrePaternel2&IF(MétierArrièreGrandPèrePaternel2=\"\",\"\",CHAR(10)&MétierArrièreGrandPèrePaternel2)&IF(NaissanceArrièreGrandPèrePaternel2=\"\",\"\",CHAR(10)&\"°\"&NaissanceArrièreGrandPèrePaternel2&\" - \"&LieuNaissanceArrièreGrandPèrePaternel2)&IF(DécèsArrièreGrandPèrePaternel2=\"\",\"\",CHAR(10)&\"+\"&DécèsArrièreGrandPèrePaternel2&\" - \"&LieuDécèsArrièreGrandPèrePaternel2)","v":"Arrière-grand-père paternel 2"},null,null,null,null,null,null,null,null,null,null,null,{"$f":"ArrièreGrandMèrePaternelle2&IF(MétierArrièreGrandMèrePaternelle2=\"\",\"\",CHAR(10)&MétierArrièreGrandMèrePaternelle2)&IF(NaissanceArrièreGrandMèrePaternelle2=\"\",\"\",CHAR(10)&\"°\"&NaissanceArrièreGrandMèrePaternelle2&\" - \"&LieuNaissanceArrièreGrandMèrePaternelle2)&IF(DécèsArrièreGrandMèrePaternelle2=\"\",\"\",CHAR(10)&\"+\"&DécèsArrièreGrandMèrePaternelle2&\" - \"&LieuDécèsArrièreGrandMèrePaternelle2)","v":"Arrière-grand-mère paternelle 2"},null,null,null,null,null,null,null,null,null,null,null,{"$f":"ArrièreGrandPèreMaternel1&IF(MétierArrièreGrandPèreMaternel1=\"\",\"\",CHAR(10)&MétierArrièreGrandPèreMaternel1)&IF(NaissanceArrièreGrandPèreMaternel1=\"\",\"\",CHAR(10)&\"°\"&NaissanceArrièreGrandPèreMaternel1&\" - \"&LieuNaissanceArrièreGrandPèreMaternel1)&IF(DécèsArrièreGrandPèreMaternel1=\"\",\"\",CHAR(10)&\"+\"&DécèsArrièreGrandPèreMaternel1&\" - \"&LieuDécèsArrièreGrandPèreMaternel1)","v":"Arrière-grand-père maternel 1"},null,null,null,null,null,null,null,null,null,null,null,{"$f":"ArrièreGrandMèreMaternelle1&IF(MétierArrièreGrandMèreMaternelle1=\"\",\"\",CHAR(10)&MétierArrièreGrandMèreMaternelle1)&IF(NaissanceArrièreGrandMèreMaternelle1=\"\",\"\",CHAR(10)&\"°\"&NaissanceArrièreGrandMèreMaternelle1&\" - \"&LieuNaissanceArrièreGrandMèreMaternelle1)&IF(DécèsArrièreGrandMèreMaternelle1=\"\",\"\",CHAR(10)&\"+\"&DécèsArrièreGrandMèreMaternelle1&\" - \"&LieuDécèsArrièreGrandMèreMaternelle1)","v":"Arrière-grand-mère maternelle 1"},null,null,null,null,null,null,null,null,null,null,null,{"$f":"ArrièreGrandPèreMaternel2&IF(MétierArrièreGrandPèreMaternel2=\"\",\"\",CHAR(10)&MétierArrièreGrandPèreMaternel2)&IF(NaissanceArrièreGrandPèreMaternel2=\"\",\"\",CHAR(10)&\"°\"&NaissanceArrièreGrandPèreMaternel2&\" - \"&LieuNaissanceArrièreGrandPèreMaternel2)&IF(DécèsArrièreGrandPèreMaternel2=\"\",\"\",CHAR(10)&\"+\"&DécèsArrièreGrandPèreMaternel2&\" - \"&LieuDécèsArrièreGrandPèreMaternel2)","v":"Arrière-grand-père maternel 2"},null,null,null,null,null,null,null,null,null,null,null,{"$f":"ArrièreGrandMèreMaternelle2&IF(MétierArrièreGrandMèreMaternelle2=\"\",\"\",CHAR(10)&MétierArrièreGrandMèreMaternelle2)&IF(NaissanceArrièreGrandMèreMaternelle2=\"\",\"\",CHAR(10)&\"°\"&NaissanceArrièreGrandMèreMaternelle2&\" - \"&LieuNaissanceArrièreGrandMèreMaternelle2)&IF(DécèsArrièreGrandMèreMaternelle2=\"\",\"\",CHAR(10)&\"+\"&DécèsArrièreGrandMèreMaternelle2&\" - \"&LieuDécèsArrièreGrandMèreMaternelle2)","v":"Arrière-grand-mère maternelle 2"}]
[]
[]
[]
[]
[null,null,null,null,null,null,null,{"$f":"GrandPèrePaternel&IF(MétierGrandPèrePaternel=\"\",\"\",CHAR(10)&MétierGrandPèrePaternel)&IF(NaissanceGrandPèrePaternel=\"\",\"\",CHAR(10)&\"°\"&NaissanceGrandPèrePaternel&\" - \"&LieuNaissanceGrandPèrePaternel)&IF(DécèsGrandPèrePaternel=\"\",\"\",CHAR(10)&\"+\"&DécèsGrandPèrePaternel&\" - \"&LieuDécèsGrandPèrePaternel)","v":"Jean-François Dupont\nMédecin\n°3 mars 1906 - Lille, France\n+17 juin 1991 - Paris, France"},null,null,null,null,null,null,null,null,null,null,null,null,null,null,null,null,null,null,null,null,null,null,null,{"$f":"GrandMèrePaternelle&IF(MétierGrandMèrePaternelle=\"\",\"\",CHAR(10)&MétierGrandMèrePaternelle)&IF(NaissanceGrandMèrePaternelle=\"\",\"\",CHAR(10)&\"°\"&NaissanceGrandMèrePaternelle&\" - \"&LieuNaissanceGrandMèrePaternelle)&IF(DécèsGrandMèrePaternelle=\"\",\"\",CHAR(10)&\"+\"&DécèsGrandMèrePaternelle&\" - \"&LieuDécèsGrandMèrePaternelle)","v":"Laure Goudiard du Mesnil\nInfirmière\n°11 novembre 1925 - France\n+4 mars 2005 - Paris, France"},null,null,null,null,null,null,null,null,null,null,null,null,null,null,null,null,null,null,null,null,null,null,null,{"$f":"GrandPèreMaternel&IF(MétierGrandPèreMaternel=\"\",\"\",CHAR(10)&MétierGrandPèreMaternel)&IF(NaissanceGrandPèreMaternel=\"\",\"\",CHAR(10)&\"°\"&NaissanceGrandPèreMaternel&\" - \"&LieuNaissanceGrandPèreMaternel)&IF(DécèsGrandPèreMaternel=\"\",\"\",CHAR(10)&\"+\"&DécèsGrandPèreMaternel&\" - \"&LieuDécèsGrandPèreMaternel)","v":"Thomas Søndergaard Jensen\nJuriste\n°13 décembre 1926 - Copenhague, Danemark\n+24 janvier 2006 - Paris, France"},null,null,null,null,null,null,null,null,null,null,null,null,null,null,null,null,null,null,null,null,null,null,null,{"$f":"GrandMèreMaternelle&IF(MétierGrandMèreMaternelle=\"\",\"\",CHAR(10)&MétierGrandMèreMaternelle)&IF(NaissanceGrandMèreMaternelle=\"\",\"\",CHAR(10)&\"°\"&NaissanceGrandMèreMaternelle&\" - \"&LieuNaissanceGrandMèreMaternelle)&IF(DécèsGrandMèreMaternelle=\"\",\"\",CHAR(10)&\"+\"&DécèsGrandMèreMaternelle&\" - \"&LieuDécèsGrandMèreMaternelle)","v":"Charlotte Louis\nRetraité\n°27 septembre 1932 - Copenhague, Danemark"}]
[]
[]
[]
[]
[null,null,null,null,null,null,null,null,null,null,null,null,null,null,null,null,null,null,null,{"$f":"Père&IF(MétierPère=\"\",\"\",CHAR(10)&MétierPère)&IF(NaissancePère=\"\",\"\",CHAR(10)&\"°\"&NaissancePère&\" - \"&LieuNaissancePère&IF(DécèsPère=\"\",\"\",CHAR(10)&\"+\"&DécèsPère&\" - \"&LieuDécèsPère))","v":"Roger Dupont\nRestaurateur\n°11 février 1948 - Lille, France"},null,null,null,null,null,null,null,null,null,null,null,null,null,null,null,null,null,null,null,null,null,null,null,null,null,null,null,null,null,null,null,null,null,null,null,null,null,null,null,null,null,null,null,null,null,null,null,{"$f":"Mère&IF(MétierMère=\"\",\"\",CHAR(10)&MétierMère)&IF(NaissanceMère=\"\",\"\",CHAR(10)&\"°\"&NaissanceMère&\" - \"&LieuNaissanceMère&IF(DécèsMère=\"\",\"\",CHAR(10)&\"+\"&DécèsMère&\" - \"&LieuDécèsMère))","v":"Christiane,Rønnow Jensen\nSecrétaire\n°13 février 1953 - Danemark"}]
[]
[]
[]
[]
[null,null,null,null,null,null,null,null,null,null,null,null,null,null,null,null,null,null,null,null,null,null,null,null,null,null,null,null,null,null,null,null,null,null,null,null,null,null,null,null,null,null,null,"Aurélie Dupont\n°23 janvier 1983 - Paris",null,null,null,null,null,null,null,null,null,null,null,null,"\n"]

{"sheet":"Parents","index":2,"n_rows":32,"n_cols":8,"rows_kept":32,"cut":false,"hidden":false,"merged":[[12,2,12,3],[19,3,19,4],[19,5,19,7],[13,2,13,3],[9,1,9,3],[9,5,9,7],[24,1,24,7],[25,1,25,7],[10,2,10,3],[11,2,11,3],[14,2,14,3],[10,6,10,7],[11,6,11,7],[12,6,12,7],[22,1,22,7],[23,1,23,7],[14,6,14,7],[15,6,15,7],[15,2,15,3]]}
[null,{"$f":"NomArbre","v":"Dupont - Jensen"}]
[null,"ARBRE GÉNÉALOGIQUE"]
[]
[]
[null,"PARENTS DU PÈRE",null,null,null,"PARENTS DE LA MÈRE"]
[]
[]
[]
[]
[null,{"$f":"\"Père : \"&Père","v":"Père : Roger Dupont"},null,null,null,{"$f":"\"Mère : \"&Mère","v":"Mère : Christiane,Rønnow Jensen"}]
[null,null,"NAISSANCE",null,null,null,"NAISSANCE"]
[null,null,"11 février 1948",null,null,null,"13 février 1953"]
[null,null,"Lille, France",null,null,null,"Danemark"]
[null,null,"DÉCÈS",null,null,null,"DÉCÈS"]
[]
[]
[null,null,"MÉTIER","Restaurateur",null,null,"MÉTIER","Secrétaire"]
[]
[]
[null,null,"MARIAGE","5 juin 1974",null,"Toulouse"]
[]
[null," Notes"]
[null,"Domiciliés à Amiens"]
[]
[]
[]
[]
[null,"ENFANTS","NOM","LIENS","NAISSANCE","LIEU DE NAISSANCE","DÉCÈS","LIEU DE DÉCÈS"]
[null,null,{"$f":"Accueil","v":"Aurélie Dupont"},"Fille","23 janvier 1983","Paris"]
[null,null,"Roger Dupont","Fils","20 avril 1985","Paris"]
[null,null,"Marc Dupont","Fils","19 janvier 1987","Paris"]
[null,null,"Jean-Charles Dupont","Fils","11 octobre 1990","Paris"]

{"sheet":"Grands_parents_paternels","index":3,"n_rows":33,"n_cols":8,"rows_kept":33,"cut":false,"hidden":false,"merged":[[10,2,10,3],[10,6,10,7],[11,2,11,3],[11,6,11,7],[9,1,9,3],[9,5,9,7],[25,1,25,7],[26,1,26,7],[21,1,21,7],[24,1,24,7],[12,2,12,3],[12,6,12,7],[13,2,13,3],[14,2,14,3],[14,6,14,7],[15,2,15,3],[15,6,15,7],[18,3,18,4],[18,5,18,7]]}
[null,{"$f":"NomArbre","v":"Dupont - Jensen"}]
[null,"ARBRE GÉNÉALOGIQUE"]
[]
[]
[null,"PARENTS DU PÈRE",null,null,null,"PARENTS DE LA MÈRE"]
[]
[]
[]
[]
[null,{"$f":"\"Père : \"&GrandPèrePaternel","v":"Père : Jean-François Dupont"},null,null,null,{"$f":"\"Mère : \"&GrandMèrePaternelle","v":"Mère : Laure Goudiard du Mesnil"}]
[null,null,"NAISSANCE",null,null,null,"NAISSANCE"]
[null,null,"3 mars 1906",null,null,null,"11 novembre 1925"]
[null,null,"Lille, France",null,null,null,"France"]
[null,null,"DÉCÈS",null,null,null,"DÉCÈS"]
[null,null,"17 juin 1991",null,null,null,"4 mars 2005"]
[null,null,"Paris, France",null,null,null,"Paris, France"]
[null,null,"MÉTIER","Médecin",null,null,"MÉTIER","Infirmière"]
[]
[null,null,"MARIAGE","avril 1940",null,"Lille"]
[]
[null," Notes"]
[null,"Laure a déménagé avec ses parents à Paris en 1955."]
[]
[]
[]
[]
[]
[]
[null,"ENFANTS","NOM","LIENS","NAISSANCE","LIEU DE NAISSANCE","DÉCÈS","LIEU DE DÉCÈS"]
[null,null,{"$f":"Père","v":"Roger Dupont"},"Fils",{"$f":"IF(NaissancePère<>0,NaissancePère,\"\")","v":"11 février 1948"},{"$f":"IF(LieuNaissancePère<>0,LieuNaissancePère,\"\")","v":"Lille, France"},{"$f":"IF(DécèsPère<>0,DécèsPère,\"\")","v":""},{"$f":"IF(LieuDécèsPère<>0,LieuDécèsPère,\"\")","v":""}]
[null,null,"Bernard Dupont","Fils","28 mars 1952","Paris, France"]
[null,null,"Denise Dupont","Fille","30 mars 1955","Paris, France"]
[null,null,"Jules Dupont","Fils","20 novembre 1960","Paris, France","23 novembre 1960","Paris, France"]

{"sheet":"Grands_parents_maternels","index":4,"n_rows":32,"n_cols":8,"rows_kept":32,"cut":false,"hidden":false,"merged":[[10,2,10,3],[10,6,10,7],[11,2,11,3],[11,6,11,7],[9,1,9,3],[9,5,9,7],[24,1,24,7],[25,1,25,7],[26,1,26,7],[23,1,23,7],[21,1,21,7],[15,2,15,3],[15,6,15,7],[18,3,18,4],[18,5,18,7],[12,2,12,3],[12,6,12,7],[13,2,13,3],[14,2,14,3],[14,6,14,7]]}
[null,{"$f":"NomArbre","v":"Dupont - Jensen"}]
[null,"ARBRE GÉNÉALOGIQUE"]
[]
[]
[null,"PARENTS DU PÈRE",null,null,null,"PARENTS DE LA MÈRE"]
[]
[]
[]
[]
[null,{"$f":"\"Père : \"&GrandPèreMaternel","v":"Père : Thomas Søndergaard Jensen"},null,null,null,{"$f":"\"Mère : \"&GrandMèreMaternelle","v":"Mère : Charlotte Louis"}]
[null,null,"NAISSANCE",null,null,null,"NAISSANCE"]
[null,null,"13 décembre 1926",null,null,null,"27 septembre 1932"]
[null,null,"Copenhague, Danemark",null,null,null,"Copenhague, Danemark"]
[null,null,"DÉCÈS",null,null,null,"DÉCÈS"]
[null,null,"24 janvier 2006"]
[null,null,"Paris, France"]
[null,null,"MÉTIER","Juriste",null,null,"MÉTIER","Retraité"]
[]
[null,null,"MARIAGE","4 juin 1947",null,"Copenhague, Danemark"]
[]
[null," Notes"]
[]
[]
[]
[]
[]
[]
[]
[null,"ENFANTS","NOM","LIENS","NAISSANCE","LIEU DE NAISSANCE","DÉCÈS","LIEU DE DÉCÈS"]
[null,null,{"$f":"Mère","v":"Christiane,Rønnow Jensen"},"Fille",{"$f":"IF(NaissanceMère<>0,NaissanceMère,\"\")","v":"13 février 1953"},{"$f":"IF(LieuNaissanceMère<>0,LieuNaissanceMère,\"\")","v":"Danemark"},{"$f":"IF(DécèsMère<>0,DécèsMère,\"\")","v":""},{"$f":"IF(LieuDécèsMère<>0,LieuDécèsMère,\"\")","v":""}]
[null,null,"Erik Jensen","Fils","18 octobre 1956","Paris, France","17 septembre 1970","Paris, France"]
[null,null,"Henrik Jensen","Fils","2 janvier 1957","Paris, France"]

{"sheet":"Arrière_grands_parents_pater_1","index":5,"n_rows":35,"n_cols":8,"rows_kept":35,"cut":false,"hidden":false,"merged":[[18,3,18,4],[18,5,18,7],[15,2,15,3],[15,6,15,7],[9,1,9,3],[9,5,9,7],[10,2,10,3],[10,6,10,7],[11,2,11,3],[11,6,11,7],[12,2,12,3],[12,6,12,7],[13,2,13,3],[14,2,14,3],[14,6,14,7],[26,1,26,7],[21,1,21,7],[22,1,22,7],[23,1,23,7],[24,1,24,7],[25,1,25,7]]}
[null,{"$f":"NomArbre","v":"Dupont - Jensen"}]
[null,"ARBRE GÉNÉALOGIQUE"]
[]
[]
[null,"PARENTS DU PÈRE",null,null,null,"PARENTS DE LA MÈRE"]
[]
[]
[]
[]
[null,{"$f":"\"Père : \"&ArrièreGrandPèrePaternel1","v":"Père : Arrière-grand-père paternel 1"},null,null,null,{"$f":"\"Mère : \"&ArrièreGrandMèrePaternelle1","v":"Mère : Arrière-grand-mère paternelle 1"}]
[null,null,"NAISSANCE",null,null,null,"NAISSANCE"]
[]
[]
[null,null,"DÉCÈS",null,null,null,"DÉCÈS"]
[]
[]
[null,null,"MÉTIER",null,null,null,"MÉTIER"]
[]
[null,null,"MARIAGE"]
[]
[null," Notes"]
[]
[]
[]
[]
[]
[]
[]
[null,"ENFANTS","NOM","LIENS","NAISSANCE","LIEU DE NAISSANCE","DÉCÈS","LIEU DE DÉCÈS"]
[null,null,{"$f":"GrandPèrePaternel","v":"Jean-François Dupont"},"Fils",{"$f":"IF(NaissanceGrandPèrePaternel<>0,NaissanceGrandPèrePaternel,\"\")","v":"3 mars 1906"},{"$f":"IF(LieuNaissanceGrandPèrePaternel<>0,LieuNaissanceGrandPèrePaternel,\"\")","v":"Lille, France"},{"$f":"IF(DécèsGrandPèrePaternel<>0,DécèsGrandPèrePaternel,\"\")","v":"17 juin 1991"},{"$f":"IF(LieuDécèsGrandPèrePaternel<>0,LieuDécèsGrandPèrePaternel,\"\")","v":"Paris, France"}]
[null,null,"Jean-François Dupont"]
[null,null,"Jean-François Dupont"]
[null,null,"Jean-François Dupont"]
[null,null,"Jean-François Dupont"]
[null,null,"Jean-François Dupont"]

{"sheet":"Arrière_grands_parents_pater_2","index":6,"n_rows":35,"n_cols":8,"rows_kept":35,"cut":false,"hidden":false,"merged":[[18,3,18,4],[18,5,18,7],[15,2,15,3],[15,6,15,7],[9,1,9,3],[9,5,9,7],[10,2,10,3],[10,6,10,7],[11,2,11,3],[11,6,11,7],[12,2,12,3],[12,6,12,7],[13,2,13,3],[14,2,14,3],[14,6,14,7],[26,1,26,7],[21,1,21,7],[22,1,22,7],[23,1,23,7],[24,1,24,7],[25,1,25,7]]}
[null,{"$f":"NomArbre","v":"Dupont - Jensen"}]
[null,"ARBRE GÉNÉALOGIQUE"]
[]
[]
[null,"PARENTS DU PÈRE",null,null,null,"PARENTS DE LA MÈRE"]
[]
[]
[]
[]
[null,{"$f":"\"Père : \"&ArrièreGrandPèrePaternel2","v":"Père : Arrière-grand-père paternel 2"},null,null,null,{"$f":"\"Mère : \"&ArrièreGrandMèrePaternelle2","v":"Mère : Arrière-grand-mère paternelle 2"}]
[null,null,"NAISSANCE",null,null,null,"NAISSANCE"]
[]
[]
[null,null,"DÉCÈS",null,null,null,"DÉCÈS"]
[]
[]
[null,null,"MÉTIER",null,null,null,"MÉTIER"]
[]
[null,null,"MARIAGE"]
[]
[null," Notes"]
[]
[]
[]
[]
[]
[]
[]
[null,"ENFANTS","NOM","LIENS","NAISSANCE","LIEU DE NAISSANCE","DÉCÈS","LIEU DE DÉCÈS"]
[null,null,{"$f":"GrandMèrePaternelle","v":"Laure Goudiard du Mesnil"},"Fille",{"$f":"IF(NaissanceGrandMèrePaternelle<>0,NaissanceGrandMèrePaternelle,\"\")","v":"11 novembre 1925"},{"$f":"IF(LieuNaissanceGrandMèrePaternelle<>0,LieuNaissanceGrandMèrePaternelle,\"\")","v":"France"},{"$f":"IF(DécèsGrandMèrePaternelle<>0,DécèsGrandMèrePaternelle,\"\")","v":"4 mars 2005"},{"$f":"IF(LieuDécèsGrandMèrePaternelle<>0,LieuDécèsGrandMèrePaternelle,\"\")","v":"Paris, France"}]
[null,null,"Laure Goudiard du Mesnil"]
[null,null,"Laure Goudiard du Mesnil"]
[null,null,"Laure Goudiard du Mesnil"]
[null,null,"Laure Goudiard du Mesnil"]
[null,null,"Laure Goudiard du Mesnil"]

{"sheet":"Arrière_grands_parents_mater_1","index":7,"n_rows":35,"n_cols":8,"rows_kept":35,"cut":false,"hidden":false,"merged":[[18,3,18,4],[18,5,18,7],[15,2,15,3],[15,6,15,7],[9,1,9,3],[9,5,9,7],[10,2,10,3],[10,6,10,7],[11,2,11,3],[11,6,11,7],[12,2,12,3],[12,6,12,7],[13,2,13,3],[14,2,14,3],[14,6,14,7],[26,1,26,7],[21,1,21,7],[22,1,22,7],[23,1,23,7],[24,1,24,7],[25,1,25,7]]}
[null,{"$f":"NomArbre","v":"Dupont - Jensen"}]
[null,"ARBRE GÉNÉALOGIQUE"]
[]
[]
[null,"PARENTS DU PÈRE",null,null,null,"PARENTS DE LA MÈRE"]
[]
[]
[]
[]
[null,{"$f":"\"Père : \"&ArrièreGrandPèreMaternel1","v":"Père : Arrière-grand-père maternel 1"},null,null,null,{"$f":"\"Mère : \"&ArrièreGrandMèreMaternelle1","v":"Mère : Arrière-grand-mère maternelle 1"}]
[null,null,"NAISSANCE",null,null,null,"NAISSANCE"]
[]
[]
[null,null,"DÉCÈS",null,null,null,"DÉCÈS"]
[]
[]
[null,null,"MÉTIER",null,null,null,"MÉTIER"]
[]
[null,null,"MARIAGE"]
[]
[null," Notes"]
[]
[]
[]
[]
[]
[]
[]
[null,"ENFANTS","NOM","LIENS","NAISSANCE","LIEU DE NAISSANCE","DÉCÈS","LIEU DE DÉCÈS"]
[null,null,{"$f":"GrandPèreMaternel","v":"Thomas Søndergaard Jensen"},"Fils",{"$f":"IF(NaissanceGrandPèreMaternel<>0,NaissanceGrandPèreMaternel,\"\")","v":"13 décembre 1926"},{"$f":"IF(LieuNaissanceGrandPèreMaternel<>0,LieuNaissanceGrandPèreMaternel,\"\")","v":"Copenhague, Danemark"},{"$f":"IF(DécèsGrandPèreMaternel<>0,DécèsGrandPèreMaternel,\"\")","v":"24 janvier 2006"},{"$f":"IF(LieuDécèsGrandPèreMaternel<>0,LieuDécèsGrandPèreMaternel,\"\")","v":"Paris, France"}]
[null,null,"Thomas Søndergaard Jensen"]
[null,null,"Thomas Søndergaard Jensen"]
[null,null,"Thomas Søndergaard Jensen"]
[null,null,"Thomas Søndergaard Jensen"]
[null,null,"Thomas Søndergaard Jensen"]

{"sheet":"Arrière_grands_parents_mater_2","index":8,"n_rows":35,"n_cols":8,"rows_kept":35,"cut":false,"hidden":false,"merged":[[18,3,18,4],[18,5,18,7],[15,2,15,3],[15,6,15,7],[9,1,9,3],[9,5,9,7],[10,2,10,3],[10,6,10,7],[11,2,11,3],[11,6,11,7],[12,2,12,3],[12,6,12,7],[13,2,13,3],[14,2,14,3],[14,6,14,7],[26,1,26,7],[21,1,21,7],[22,1,22,7],[23,1,23,7],[24,1,24,7],[25,1,25,7]]}
[null,{"$f":"NomArbre","v":"Dupont - Jensen"}]
[null,"ARBRE GÉNÉALOGIQUE"]
[]
[]
[null,"PARENTS DU PÈRE",null,null,null,"PARENTS DE LA MÈRE"]
[]
[]
[]
[]
[null,{"$f":"\"Père : \"&ArrièreGrandPèreMaternel2","v":"Père : Arrière-grand-père maternel 2"},null,null,null,{"$f":"\"Mère : \"&ArrièreGrandMèreMaternelle2","v":"Mère : Arrière-grand-mère maternelle 2"}]
[null,null,"NAISSANCE",null,null,null,"NAISSANCE"]
[]
[]
[null,null,"DÉCÈS",null,null,null,"DÉCÈS"]
[]
[]
[null,null,"MÉTIER",null,null,null,"MÉTIER"]
[]
[null,null,"MARIAGE"]
[]
[null," Notes"]
[]
[]
[]
[]
[]
[]
[]
[null,"ENFANTS","NOM","LIENS","NAISSANCE","LIEU DE NAISSANCE","DÉCÈS","LIEU DE DÉCÈS"]
[null,null,{"$f":"GrandMèreMaternelle","v":"Charlotte Louis"},"Fille",{"$f":"IF(NaissanceGrandMèreMaternelle<>0,NaissanceGrandMèreMaternelle,\"\")","v":"27 septembre 1932"},{"$f":"IF(LieuNaissanceGrandMèreMaternelle<>0,LieuNaissanceGrandMèreMaternelle,\"\")","v":"Copenhague, Danemark"},{"$f":"IF(DécèsGrandMèreMaternelle<>0,DécèsGrandMèreMaternelle,\"\")","v":""},{"$f":"IF(LieuDécèsGrandMèreMaternelle<>0,LieuDécèsGrandMèreMaternelle,\"\")","v":""}]
[null,null,"Charlotte Louis"]
[null,null,"Charlotte Louis"]
[null,null,"Charlotte Louis"]
[null,null,"Charlotte Louis"]
[null,null,"Charlotte Louis"]

{"sheet":"Gedcom","index":9,"n_rows":0,"n_cols":0,"rows_kept":0,"cut":false,"hidden":false,"merged":[]}